[Event "4NCL 2nd Div 2023-24"]
[Site "Daventry"]
[Date "2024.05.06"]
[Round "11.31"]
[White "Dicen, Elis Denele"]
[Black "Phillips, William"]
[Result "1/2-1/2"]
[ECO "E73"]
[WhiteElo "1919"]
[BlackElo "1873"]
[Annotator "NA RC"]
[PlyCount "82"]
[EventDate "2023.11.11"]
[EventType "team-tourn"]
[EventCountry "ENG"]
[SourceTitle "playchess.com"]
[Source "ChessBase"]
[SourceQuality "1"]
[TimeControl "40/6000+30:3000+30"]

1. d4 {[%emt 0:00:03]} Nf6 {[%emt 0:00:18]} 2. c4 {[%emt 0:00:06]} g6 {[%emt 0:00:16]} 3. h4 {[%emt 0:00:25]} Bg7 {[%emt 0:13:03]} 4. Nc3 {[%emt 0:00:08]} d6 {[%emt 0:03:37]} 5. e4 {[%emt 1:42:18]} h5 {[%emt 0:01:23]} 6. Be2 {[%emt 0:00:00]} O-O {[%emt 0:00:47]} 7. Bg5 {[%emt 0:00:00]} Nh7 {[%emt 0:08:41]} 8. Be3 {[%emt 0:00:00]} e5 {[%emt 0:03:10]} 9. d5 {[%emt 0:00:00]} Na6 {[%emt 0:07:45]} 10. Qd2 {[%emt 0:00:00]} f5 {[%emt 0:07:15]} 11. exf5 {[%emt 0:00:00]} Bxf5 {[%emt 0:01:23]} 12. Nf3 {[%emt 0:00:00]} Nc5 {[%emt 0:08:32]} 13. O-O-O {[%emt 0:00:00]} a5 {[%emt 0:02:10]} 14. b3 {[%emt 0:00:00]} Qd7 {[%emt 0:11:19]} 15. Ng5 {[%emt 0:00:00]} e4 {[%emt 0:06:38]} 16. Bxc5 {[%emt 0:00:00]} Bxc3 {[%emt 0:06:14]} 17. Qxc3 {[%emt 0:00:00]} dxc5 {[%emt 0:00:14]} 18. a4 {[%emt 0:00:00]} Nxg5 {[%emt 0:03:17]} 19. hxg5 {[%emt 0:00:00]} Qg7 {[%emt 0:00:54]} 20. Qxg7+ {[%emt 0:00:00]} Kxg7 {[%emt 0:00:09]} 21. Kd2 {[%emt 0:00:00]} Rae8 {[%emt 0:02:51]} 22. Ke3 {[%emt 0:00:00]} Re5 {[%emt 0:02:55]} 23. Rh4 {[%emt 0:00:00]} Bc8 {[%emt 0:01:17]} 24. g3 {[%emt 0:00:00]} Bg4 {[%emt 0:01:19]} 25. d6 {[%emt 0:00:00]} cxd6 {[%emt 0:04:41]} 26. Rxd6 {[%emt 0:00:00]} Bxe2 {[%emt 0:03:47]} 27. Kxe2 {[%emt 0:00:00]} Rxg5 {[%emt 0:01:15]} 28. Rxe4 {[%emt 0:00:00]} Rgf5 {[%emt 0:00:45]} 29. f4 {[%emt 0:00:00]} R5f6 {[%emt 0:01:21]} 30. Rd5 {[%emt 0:00:00]} b6 {[%emt 0:00:13]} 31. Ke3 {[%emt 0:00:00]} R8f7 {[%emt 0:00:15]} 32. Rd8 {[%emt 0:00:31]} g5 {[%emt 0:03:57]} 33. Ree8 {[%emt 0:04:36]} gxf4+ {[%emt 0:00:39]} 34. gxf4 {[%emt 0:00:12]} Rxf4 {[%emt 0:00:31]} 35. Rg8+ {[%emt 0:00:54]} Kh6 {[%emt 0:00:17]} 36. Rh8+ {[%emt 0:02:15]} Kg5 {[%emt 0:00:02]} 37. Rdg8+ {[%emt 0:03:11]} Kh4 {[%emt 0:00:16]} 38. Rg1 {[%emt 0:00:17]} Rf3+ {[%emt 0:02:08]} 39. Ke4 {[%emt 0:01:13]} R7f4+ {[%emt 0:02:17]} 40. Ke5 {[%emt 0:01:22]} Rf5+ {[%emt 0:00:27]} 41. Ke4 {[%emt 0:51:09]} R5f4+ {[%emt 0:50:09]} 1/2-1/2